bitfinex/quotes_ETHUSD_20260226
["timestamp","ask_amount","ask_price","bid_price","bid_amount"]
[1772117162409,4.87024524,2053.3,2051.1,0.18685624]
[1772117162410,0.94275601,2053.1,2051.1,0.18685624]
[1772117162581,0.94275601,2052.3,2050.2,0.08192]
[1772117162783,0.94275601,2052.3,2050.0,4.87781083]
[1772117162983,0.94275601,2052.0,2050.2,2.09095648]
[1772117163174,0.94275601,2052.7,2050.6,2.09095648]
[1772117163379,0.94275601,2051.0,2048.6,2.09205648]
[1772117163577,0.94275601,2051.6,2049.4,2.09095648]
[1772117163787,0.94275601,2051.1,2048.9,0.0011]
[1772117163977,0.94275601,2050.9,2049.0,1.22010736]
[1772117164679,2.6751633,2051.4,2049.0,1.22010736]
[1772117164680,0.94275601,2051.5,2049.6,2.09095648]
[1772117164903,0.94275601,2051.5,2049.7,0.18685624]
[1772117165211,0.94275601,2051.5,2049.6,0.18685624]
[1772117165406,1.21867992,2051.4,2049.7,1.21969068]
[1772117165612,0.94275601,2050.9,2049.1,1.22000481]
[1772117165914,0.94275601,2050.6,2048.9,1.22126174]
[1772117166087,0.94275601,2050.6,2048.9,3.31221822]
[1772117166293,0.94275601,2051.2,2049.3,2.09095648]
[1772117166505,0.94275601,2051.2,2049.5,0.18685624]
[1772117167393,1.21885817,2051.1,2049.6,1.21975019]
[1772117167791,2.16159564,2051.2,2049.7,0.18685624]
[1772117168128,2.16156671,2051.2,2049.6,1.21975019]
[1772117168724,0.94275601,2050.7,2048.9,1.2212266]
[1772117169303,0.94275601,2050.7,2048.9,1.22125495]
[1772117169501,0.94275601,2050.5,2048.9,0.0011]
[1772117170336,0.94275601,2050.3,2048.9,0.0011]
[1772117170653,1.21915536,2050.6,2048.6,0.0011]
[1772117170654,0.94275601,2050.0,2048.6,0.0011]
[1772117170946,0.94275601,2049.1,2047.1,1.2212398]
[1772117171269,0.94275601,2049.1,2047.0,4.89254677]
[1772117171270,0.94275601,2049.1,2047.0,0.00758756]
[1772117171426,0.94275601,2048.5,2047.0,0.00758756]
[1772117171742,0.94275601,2048.5,2047.0,1.22888545]
[1772117172154,0.94275601,2048.3,2047.0,0.00758756]
[1772117172311,0.94275601,2048.3,2047.0,1.22887078]
[1772117172516,0.94275601,2049.3,2047.2,2.09095648]
[1772117172816,0.94275601,2049.3,2047.3,0.18685624]
[1772117173010,0.94275601,2049.3,2047.7,0.18685624]
[1772117173253,0.94275601,2049.3,2047.3,0.18685624]
[1772117173435,1.21998828,2049.2,2047.2,1.22118014]
[1772117173744,0.94275601,2048.9,2047.0,1.22885633]
[1772117174046,0.94275601,2048.5,2047.0,0.00758756]
[1772117174412,0.94275601,2048.5,2047.0,1.22888125]
[1772117174940,1.604,2048.8,2047.3,0.18685624]
[1772117175143,4.87876863,2049.7,2048.0,2.09095648]
[1772117175441,0.94275601,2049.6,2048.1,0.903]
[1772117175640,1.2198097,2049.5,2048.1,0.903]
[1772117175846,0.94275601,2049.4,2047.3,3.31795648]
[1772117176143,0.94275601,2049.4,2047.3,1.22107699]
[1772117176349,0.94275601,2049.4,2047.6,2.09095648]
[1772117176712,0.94275601,2049.4,2047.2,4.54023278]
[1772117177031,0.94275601,2049.4,2047.3,0.18685624]
[1772117177234,2.16232769,2050.0,2048.4,0.18685624]
[1772117177434,4.87834467,2049.9,2048.4,1.41285624]
[1772117177652,3.76303029,2050.5,2048.8,0.18685624]
[1772117177853,1.21925636,2050.5,2049.2,0.18685624]
[1772117178152,1.21925636,2050.5,2049.1,0.18685624]
[1772117178329,1.21925636,2050.5,2049.0,2.09095648]
[1772117178535,0.94275601,2050.4,2048.4,0.53906954]
[1772117178724,0.94275601,2050.4,2048.5,1.41285624]
[1772117179167,0.94275601,2049.5,2047.4,2.09095648]
[1772117179327,2.6751633,2049.7,2047.3,1.2211205]
[1772117179328,0.94275601,2049.3,2047.3,1.2211205]
[1772117179534,0.94275601,2049.1,2047.2,4.885582]
[1772117179723,0.94275601,2049.1,2047.2,1.22228014]
[1772117179925,0.94275601,2049.1,2047.2,0.0011]
[1772117181247,0.94275601,2048.7,2047.2,0.0011]
[1772117181456,0.94275601,2048.5,2047.2,0.0011]
[1772117181656,0.94275601,2048.3,2047.2,0.0011]
[1772117182236,5.82390015,2048.9,2047.2,2.09205648]
[1772117182436,2.16292292,2048.9,2047.3,0.18685624]
[1772117182640,2.16292292,2048.9,2047.2,0.0011]
[1772117182977,1.22004782,2049.1,2047.7,2.09095648]
[1772117183272,1.21983528,2049.5,2048.1,2.09095648]
[1772117183761,1.604,2049.5,2047.8,2.09095648]
[1772117183927,0.94275601,2049.6,2047.9,0.18685624]
[1772117184127,2.54775601,2049.6,2047.8,2.09095648]
[1772117184438,2.54775601,2049.6,2047.5,4.88400417]
[1772117184439,0.94275601,2049.5,2047.5,4.88400417]
[1772117184952,0.94275601,2049.5,2047.4,4.54001144]
[1772117185156,0.94275601,2049.5,2047.4,4.54001683]
[1772117185357,0.94275601,2048.9,2047.2,0.0011]
[1772117185544,5.82413841,2048.7,2047.2,0.0011]
[1772117185865,1.2203456,2048.6,2047.2,0.0011]
[1772117186165,2.1992056,2048.6,2047.2,0.0011]
[1772117186372,0.97886,2048.5,2047.2,0.0011]
[1772117187332,0.97886,2048.5,2047.6,0.0011]
[1772117187534,0.97886,2048.3,2047.6,0.0011]
[1772117187740,0.97886,2047.8,2046.5,0.1627804]
[1772117187940,0.97886,2047.8,2045.0,0.00393156]
[1772117187941,0.97886,2047.0,2045.0,1.22642478]
[1772117188148,0.97886,2047.6,2045.6,2.09095648]
[1772117188349,0.97886,2047.5,2045.6,2.09095648]
[1772117188665,0.97886,2047.5,2047.1,0.0011]
[1772117188897,0.97886,2047.5,2046.0,2.09095648]
[1772117189168,0.97886,2047.5,2046.1,0.18685624]
[1772117189463,0.97886,2047.5,2046.0,0.785]
[1772117189665,1.22070312,2048.0,2046.3,2.09095648]
[1772117190101,1.22070312,2048.0,2046.1,2.29167211]
[1772117190102,1.2203456,2048.6,2047.0,0.08192]
[1772117190377,1.22032793,2048.7,2047.3,2.09095648]
[1772117190680,4.87947485,2049.5,2047.3,2.09095648]
[1772117190681,1.21975019,2049.6,2048.1,2.09095648]
[1772117190974,1.21973493,2049.7,2048.2,0.18685624]
[1772117191179,1.21966428,2049.8,2048.5,2.09095648]
[1772117191351,1.21966428,2049.8,2048.2,0.18685624]
[1772117191739,1.21966428,2049.8,2048.1,5.79758504]
[1772117191740,2.19852428,2049.8,2048.1,3.70662856]
[1772117192150,0.97886,2049.7,2047.6,0.18685624]
[1772117192357,0.97886,2049.5,2047.5,0.18685624]
[1772117192581,0.97886,2049.5,2047.7,2.09095648]
[1772117192778,0.97886,2049.4,2047.0,2.09095648]
[1772117192980,0.97886,2049.0,2047.0,2.09095648]
[1772117193698,2.19902691,2048.9,2047.0,3.31220183]
[1772117194152,1.2200765,2049.1,2047.8,2.09095648]
[1772117194568,1.22001589,2049.2,2047.9,0.18685624]
[1772117194768,1.22001589,2049.2,2047.8,2.09095648]
[1772117194967,1.22001589,2049.2,2047.7,1.228]
[1772117195189,1.605,2049.1,2046.8,0.54965991]
[1772117195385,0.97886,2049.0,2047.3,2.09095648]
[1772117195888,0.97886,2048.6,2046.1,2.29167211]
[1772117196088,1.22016691,2048.9,2046.1,2.29167211]
[1772117196089,0.97886,2048.3,2046.1,3.51347405]
[1772117196294,0.97886,2048.1,2046.1,3.51347405]
[1772117196654,0.97886,2048.1,2046.1,3.51350117]
[1772117196852,0.97886,2048.1,2046.1,2.29167211]
[1772117197174,0.97886,2047.9,2045.8,3.51367748]
[1772117197550,0.97886,2047.9,2045.8,5.60463396]
[1772117197858,0.97886,2047.9,2046.3,0.18685624]
[1772117197859,1.22082234,2047.8,2046.3,0.18685624]
[1772117198059,2.213035,2047.8,2045.9,0.18685624]
[1772117198786,0.99221266,2047.7,2045.9,0.18685624]
[1772117198983,1.22082234,2047.8,2046.2,2.09095648]
[1772117199191,2.21279658,2048.2,2046.7,0.18685624]
[1772117199372,0.99221266,2048.1,2046.7,1.226]
[1772117199964,1.22070312,2048.0,2046.7,1.226]
[1772117200285,2.21291578,2048.0,2046.7,1.226]
[1772117200451,2.21291578,2048.0,2046.7,2.44747365]
[1772117200655,2.21291578,2048.0,2046.7,2.44747219]
[1772117201091,2.21291578,2048.0,2046.7,1.226]
[1772117201284,0.99221266,2047.9,2046.7,1.226]
[1772117201689,0.99221266,2047.8,2046.3,0.0011]
[1772117201985,0.99221266,2047.3,2046.3,0.0011]
[1772117203398,4.88281449,2048.2,2046.7,0.18685624]
[1772117203399,0.99221266,2047.9,2046.7,0.18685624]
[1772117203598,1.22064352,2048.1,2046.7,1.41185624]
[1772117203782,1.22046475,2048.4,2047.0,0.18685624]
[1772117204093,1.22046475,2048.4,2046.7,1.41185624]
[1772117204094,0.99221266,2048.3,2046.7,1.225]
[1772117204403,0.99221266,2048.3,2046.8,0.18685624]
[1772117204762,0.99221266,2048.3,2046.8,1.69228338]
[1772117204961,1.22046475,2048.4,2046.8,1.69228338]
[1772117204962,1.22046475,2048.4,2047.1,1.50542714]
[1772117205262,1.6,2048.7,2047.4,1.50542714]
[1772117205463,1.6,2048.7,2047.2,0.18685624]
[1772117205464,1.22094055,2049.3,2048.0,0.18685624]
[1772117205694,0.001,2049.3,2048.3,1.50542714]
[1772117205989,1.21957168,2049.9,2048.6,1.50542714]
[1772117206187,1.21957168,2049.9,2048.6,0.18685624]
[1772117206862,1.21957168,2049.9,2048.6,1.69228338]
[1772117207079,1.21957168,2049.9,2048.8,0.18685624]
[1772117207261,0.001,2050.0,2049.0,1.50542714]
[1772117207458,0.001,2050.0,2049.1,0.18685624]
[1772117207687,4.87688883,2050.5,2049.4,0.18685624]
[1772117207892,2.21139583,2050.6,2049.4,0.18685624]
[1772117208061,1.21885817,2051.1,2049.8,1.21963118]
[1772117208260,1.21885817,2051.1,2049.8,0.18685624]
[1772117208457,2.21059562,2052.0,2050.6,1.50542714]
[1772117208686,4.87374033,2051.9,2050.7,1.223]
[1772117208874,1.21838296,2051.9,2050.8,0.18685624]
[1772117209070,0.001,2052.1,2051.1,0.18685624]
[1772117209278,1.21926987,2052.1,2051.1,0.18685624]
[1772117209493,2.21148253,2052.1,2050.5,0.18685624]
[1772117210072,2.21148253,2052.1,2050.8,0.18685624]
[1772117210414,2.21148253,2052.1,2050.7,1.50542714]
[1772117210576,0.99221266,2052.0,2050.5,0.18685624]
[1772117210904,0.99221266,2052.0,2050.4,2.44323498]
[1772117211110,0.99221266,2052.0,2050.4,3.94867187]
[1772117211312,0.99221266,2052.0,2050.4,1.224]
[1772117211491,0.99221266,2051.5,2049.6,1.50542714]
[1772117211792,2.70265295,2051.9,2049.5,1.224]
[1772117211793,0.99221266,2051.2,2049.5,1.224]
[1772117212212,0.99221266,2051.2,2049.6,1.21975019]
[1772117212213,0.99221266,2051.0,2049.6,1.21975019]
[1772117212370,1.21873933,2051.3,2049.9,1.50542714]
[1772117212569,1.21873933,2051.3,2050.0,0.18685624]
[1772117212965,1.21873933,2051.3,2049.7,0.18685624]
[1772117212966,2.21095199,2051.3,2049.7,0.18685624]
[1772117213166,0.99221266,2051.2,2049.6,1.21975019]
[1772117213592,0.99221266,2051.2,2049.6,2.72517733]
[1772117214175,1.21885817,2051.1,2049.8,1.21963118]
[1772117214376,0.99221266,2051.0,2049.5,2.44486424]
[1772117214889,0.99221266,2051.0,2049.5,2.44486544]
[1772117215204,0.99221266,2051.0,2049.6,1.50542714]
[1772117215410,0.99221266,2051.0,2049.7,0.18685624]
[1772117215763,0.99221266,2051.0,2049.5,2.44486544]
[1772117216104,0.94393023,2050.8,2049.5,2.44486544]
[1772117216470,0.94393023,2050.8,2049.6,0.18685624]
[1772117216780,1.21971431,2051.4,2049.9,2.47862856]
[1772117216969,1.21971431,2051.4,2050.0,1.69228338]
[1772117217163,2.16364454,2051.4,2049.9,2.47862856]
[1772117217371,0.94393023,2051.3,2049.9,0.18685624]
[1772117218276,0.001,2051.4,2050.1,0.18685624]
[1772117218488,0.94393023,2052.8,2051.3,1.50542714]
[1772117218686,0.94393023,2052.7,2050.7,1.50542714]
[1772117218915,0.94393023,2052.6,2050.8,0.18685624]
[1772117219575,0.94393023,2052.6,2051.1,1.50542714]
[1772117220102,2.44935737,2052.6,2050.7,1.50542714]
[1772117220307,2.44935737,2052.6,2050.4,4.87708087]
[1772117220308,0.94393023,2052.1,2050.4,4.87708087]
[1772117220508,0.94393023,2051.9,2050.2,1.21939322]
[1772117220673,0.94393023,2051.7,2050.2,1.21939322]
[1772117220871,0.94393023,2051.7,2050.1,1.2194078]
[1772117221074,0.94393023,2051.7,2050.1,2.72483494]
[1772117221304,0.94393023,2051.7,2049.9,1.21956516]
[1772117221596,4.15717394,2051.8,2049.8,1.21960296]
[1772117221597,0.94393023,2051.4,2049.8,1.21960296]
[1772117221798,0.94393023,2051.2,2049.5,1.22086293]
[1772117221970,0.94393023,2051.0,2049.5,1.22086293]
[1772117222173,0.94393023,2050.8,2049.5,0.0011]
[1772117222371,0.94393023,2050.5,2049.5,0.0011]
[1772117222984,0.94393023,2050.5,2049.5,1.22090121]
[1772117223205,0.94393023,2050.5,2049.5,0.0011]
[1772117223380,0.94393023,2050.5,2049.5,1.22090215]
[1772117223906,0.94393023,2050.5,2049.5,0.0011]
[1772117224205,1.21927428,2050.4,2049.5,0.0011]
[1772117224416,0.94393023,2050.3,2049.5,0.0011]
[1772117224999,0.94393023,2050.3,2049.3,0.0011]
[1772117225200,0.94393023,2050.3,2049.0,0.0011]
[1772117226010,0.94393023,2049.9,2049.0,0.0011]
[1772117226178,0.94393023,2049.4,2047.8,1.22082234]
[1772117226380,0.94393023,2049.4,2047.7,1.22084634]
[1772117226381,0.94393023,2049.3,2047.7,1.22084634]
[1772117226580,0.94393023,2048.7,2046.8,1.50542714]
[1772117226785,0.94393023,2048.5,2046.9,1.50542714]
[1772117227194,0.94393023,2048.5,2046.6,2.72690561]
[1772117227395,0.94393023,2048.4,2046.6,1.22147847]
[1772117227593,0.94393023,2048.1,2046.6,1.22147847]
[1772117227889,0.94393023,2048.1,2046.6,2.72690561]
[1772117228082,0.94393023,2047.6,2046.4,4.88642691]
[1772117228296,0.94393023,2048.3,2046.6,1.22153816]
[1772117228794,0.94393023,2048.1,2046.3,1.22279772]
[1772117228982,1.22046475,2048.4,2046.3,1.22279772]
[1772117228983,0.94393023,2047.8,2046.3,0.0011]
[1772117229200,0.94393023,2047.0,2046.3,0.0011]
[1772117229379,0.94393023,2047.0,2046.3,1.22280674]
[1772117229578,1.596,2047.2,2046.3,1.22280674]
[1772117229779,0.94393023,2048.0,2046.3,1.22280674]
[1772117229979,1.596,2047.8,2046.5,1.50542714]
[1772117230180,1.22094159,2047.6,2046.3,0.0011]
[1772117230515,1.22094159,2047.6,2044.2,1.46749955]
[1772117230516,0.94393023,2046.3,2044.2,1.46749955]
[1772117230702,0.94393023,2046.0,2044.4,1.50542714]
[1772117230883,0.94393023,2046.6,2044.3,4.89147125]
[1772117231082,0.94393023,2046.6,2044.9,1.50542714]
[1772117231387,1.25,2046.5,2044.9,1.50542714]
[1772117232016,1.25,2046.5,2044.3,4.89147125]
[1772117232017,0.94393023,2046.3,2044.3,4.89147125]
[1772117232213,1.22177695,2046.2,2044.3,4.89147125]
[1772117232383,1.25,2046.5,2044.3,4.89147125]
[1772117232384,0.94393023,2046.1,2044.5,1.50542714]
[1772117232816,6.39140255,2046.7,2045.1,1.50542714]
[1772117232817,0.94393023,2046.7,2045.1,1.50542714]
[1772117233019,0.94393023,2046.7,2045.2,0.18685624]
[1772117233311,0.94393023,2046.7,2045.5,0.18685624]
[1772117233538,1.595,2047.1,2045.8,0.18685624]
[1772117233991,1.595,2047.1,2046.0,1.50542714]
[1772117234321,0.94393023,2047.7,2046.5,1.22159784]
[1772117234613,0.94393023,2047.7,2046.0,1.50542714]
[1772117234614,0.94393023,2047.7,2046.1,4.8871078]
[1772117235314,2.16451415,2048.2,2047.0,1.50542714]
[1772117235613,2.16451415,2048.2,2046.1,6.1890278]
[1772117235614,0.94393023,2047.7,2046.1,4.8871078]
[1772117235826,1.22058392,2048.2,2046.0,1.22183666]
[1772117235827,0.94393023,2047.3,2046.0,1.22183666]
[1772117236035,1.594,2047.2,2046.0,1.22183666]
[1772117236318,0.94393023,2047.3,2046.0,0.18685624]
[1772117236519,2.16505721,2047.3,2045.8,4.88758553]
[1772117236726,2.16505721,2047.3,2045.9,0.18685624]
[1772117237012,2.16505721,2047.3,2045.7,4.88758553]
[1772117237013,0.94393023,2047.2,2045.7,4.88758553]
[1772117237323,1.22112698,2047.3,2044.9,1.22255367]
[1772117237324,0.94393023,2046.4,2044.9,1.22255367]
[1772117237508,2.53593023,2046.4,2044.9,1.22255367]
[1772117237813,0.94393023,2046.3,2044.9,1.22255367]
[1772117238318,0.94393023,2046.3,2044.7,4.89021468]
[1772117238319,0.94393023,2046.1,2044.7,4.89021468]
[1772117238620,0.94393023,2046.1,2046.0,0.0011]
[1772117238920,0.94393023,2046.1,2045.7,0.0011]
[1772117239121,2.16528935,2046.9,2045.7,0.0011]
[1772117239323,0.94393023,2046.8,2045.7,0.0011]
[1772117239482,0.94093023,2046.8,2045.7,0.0011]
[1772117240219,2.72678626,2046.9,2045.7,0.0011]
[1772117240220,0.94393023,2046.5,2045.7,0.0011]
[1772117240397,0.94393023,2046.5,2044.5,6.39564182]
[1772117240398,0.94393023,2046.2,2044.5,4.89021468]
[1772117240592,2.53593023,2046.1,2044.5,4.89021468]
[1772117241016,2.53593023,2046.1,2044.8,1.50542714]
[1772117241192,0.94393023,2046.1,2044.8,1.50542714]
[1772117241390,1.50542714,2046.9,2045.1,1.50542714]
[1772117241391,0.94393023,2046.8,2045.1,1.50542714]
[1772117241586,0.94393023,2046.8,2045.2,0.18685624]
[1772117241790,0.94393023,2046.8,2045.4,0.90550658]
[1772117242016,0.94393023,2046.8,2045.3,1.50542714]
[1772117242319,0.94393023,2046.8,2045.6,1.50542714]
[1772117242520,0.94393023,2046.8,2045.4,1.22225481]
[1772117243418,2.1653494,2046.8,2045.4,1.22225481]
[1772117243627,1.2211205,2047.3,2045.9,1.50542714]
[1772117244038,0.94393023,2047.4,2046.3,0.18685624]
[1772117244190,1.588,2047.6,2046.3,0.18685624]
[1772117244522,0.94393023,2047.2,2045.6,1.22213531]
[1772117244689,0.94393023,2047.2,2045.7,0.18685624]
[1772117244891,1.588,2047.6,2046.2,0.18685624]
[1772117245105,2.80894278,2047.6,2045.9,0.08192]
[1772117245318,0.94393023,2047.7,2046.5,0.18685624]
[1772117245695,0.94393023,2048.2,2046.4,1.50542714]
[1772117245923,0.94393023,2048.2,2046.5,0.18685624]
[1772117246234,0.9432883,2047.7,2045.8,2.29577211]
[1772117246404,0.9432883,2049.3,2047.5,1.50542714]
[1772117246739,1.50542714,2049.2,2047.5,1.22100122]
[1772117247032,2.44871544,2049.2,2047.6,0.18685624]
[1772117247232,0.9432883,2049.1,2047.5,1.22100122]
[1772117248005,1.50542714,2048.9,2047.5,1.22100122]
[1772117248206,0.9432883,2048.7,2047.5,1.22100122]
[1772117248410,0.9432883,2048.4,2046.8,1.2214188]
[1772117248737,1.50542714,2048.5,2046.4,4.1883672]
[1772117248738,0.9432883,2048.0,2046.5,4.8856752]
[1772117249534,4.88123483,2048.7,2046.5,4.8856752]
[1772117249535,2.16367322,2048.6,2046.9,0.18685624]
[1772117249826,2.16367322,2048.6,2046.6,1.218]
[1772117249827,0.9432883,2048.6,2047.2,0.18685624]
[1772117250130,2.16363941,2048.6,2046.8,0.18685624]
[1772117250299,2.44871544,2048.4,2046.5,5.81093024]
[1772117250603,0.001,2047.8,2046.2,4.88639139]
[1772117251227,0.001,2047.8,2046.4,1.50542714]
[1772117251398,0.001,2047.8,2046.5,0.18685624]
[1772117251598,0.001,2047.8,2046.8,1.50542714]
[1772117251801,0.001,2047.8,2046.9,0.18685624]
[1772117252510,0.001,2047.8,2047.0,1.22129946]
[1772117252909,0.001,2047.8,2046.2,4.88663017]
[1772117253310,0.001,2047.8,2046.2,6.39205731]
[1772117253511,0.001,2047.8,2046.2,4.88663017]
[1772117253707,0.001,2047.8,2046.5,1.50542714]
[1772117253932,0.9442883,2047.8,2046.1,6.39205731]
[1772117254313,0.9442883,2047.8,2046.0,4.88665277]
[1772117254314,0.9432883,2047.6,2046.0,4.88665277]
[1772117254622,2.16434915,2047.4,2045.9,1.22189638]
[1772117254939,0.9432883,2047.4,2045.9,1.22189638]
[1772117256621,1.2211205,2047.3,2045.7,4.88758553]
[1772117257026,2.1644088,2047.3,2045.7,4.88758553]
[1772117257616,2.48860239,2047.4,2045.7,4.88758553]
[1772117257817,2.81000576,2047.5,2045.6,4.88782442]
[1772117257818,1.50542714,2047.1,2045.6,4.88782442]
[1772117258036,2.48860239,2047.1,2045.6,4.88782442]
[1772117258233,0.98317525,2047.0,2045.6,4.88782442]
[1772117258601,0.98317525,2047.0,2045.7,0.18685624]
[1772117258812,3.70990189,2047.0,2045.5,1.22213531]
[1772117259022,2.20447475,2047.0,2045.5,1.22213531]
[1772117259645,1.22109667,2047.4,2045.6,1.69228338]
[1772117260002,3.79317777,2047.5,2045.6,1.69228338]
[1772117260428,3.79319103,2047.5,2046.0,0.18685624]
[1772117260714,3.79319103,2047.5,2045.6,4.88830229]
[1772117260715,0.98317525,2047.2,2045.6,4.88830229]
[1772117261142,0.98317525,2047.2,2045.7,0.18685624]
[1772117261746,2.48860239,2047.4,2045.8,1.213]
[1772117261934,0.98317525,2047.3,2045.8,1.213]
[1772117262315,0.98317525,2047.3,2045.9,0.18685624]
[1772117262509,1.589,2047.5,2045.9,0.18685624]
[1772117262510,2.81000201,2047.5,2045.9,0.18685624]
[1772117262733,1.589,2047.5,2046.1,0.18685624]
[1772117262948,2.81000235,2047.5,2046.1,0.18685624]
[1772117263624,0.98417525,2047.8,2046.1,0.18685624]
[1772117263827,2.20501838,2047.8,2046.2,2.58139508]
[1772117264015,2.20501838,2047.8,2046.0,2.61875262]
[1772117264016,0.98317525,2047.7,2046.0,2.61875262]
[1772117264216,0.98317525,2047.5,2046.0,1.22189638]
[1772117264718,1.575,2047.6,2045.8,4.88868553]
[1772117264719,0.98317525,2047.3,2045.8,4.88868553]
[1772117265817,0.98317525,2047.0,2045.8,1.22311583]
[1772117266118,0.98317525,2046.5,2045.5,0.0011]
[1772117266319,0.98317525,2046.3,2045.5,0.0011]
[1772117266517,0.98317525,2046.1,2045.5,0.0011]
[1772117266717,0.98317525,2045.9,2045.1,0.0011]
[1772117267022,0.98317525,2045.8,2045.1,0.0011]
[1772117267723,0.98317525,2045.7,2044.9,0.0011]
[1772117267924,0.98317525,2044.9,2043.1,1.46830102]
[1772117268162,2.55717525,2044.8,2043.1,1.46830102]
[1772117268324,0.98317525,2045.4,2043.5,0.08192]
[1772117268526,0.98317525,2045.4,2043.4,2.10784014]
[1772117268527,0.98317525,2045.4,2043.4,1.209]
[1772117268923,0.98317525,2045.2,2043.5,1.22339124]
[1772117269128,1.22231457,2045.3,2043.5,1.22339124]
[1772117269129,0.98317525,2044.9,2043.5,1.22339124]
[1772117269341,0.98317525,2044.9,2043.5,1.17339124]
[1772117270059,0.98317525,2044.8,2043.5,1.17339124]
[1772117270286,0.98317525,2044.0,2042.4,0.1627804]
[1772117270422,3.97,2044.1,2042.4,0.1627804]
[1772117270423,0.98317525,2043.3,2042.4,0.1627804]
[1772117270625,4.68958549,2043.6,2042.0,0.003]
[1772117270626,0.98317525,2043.1,2042.0,0.003]
[1772117270839,0.98317525,2042.7,2042.0,0.003]
[1772117271037,0.98317525,2042.7,2041.1,4.89930841]
[1772117271238,0.98317525,2042.6,2041.1,4.89930841]
[1772117271753,1.575,2043.0,2041.1,4.89930841]
[1772117271754,1.575,2043.0,2041.2,1.213]
[1772117272148,2.55817525,2043.0,2041.2,1.213]
[1772117272358,0.98317525,2043.5,2041.4,0.08192]
[1772117272657,2.58174535,2043.6,2040.9,1.22494977]
[1772117272658,0.98317525,2043.3,2040.9,1.22494977]
[1772117273043,0.98317525,2042.9,2040.9,1.22494977]
[1772117273222,0.98317525,2042.7,2040.9,1.22494977]
[1772117273628,0.98317525,2042.7,2041.0,0.08192]
[1772117273828,0.98317525,2042.7,2040.8,1.23558057]
[1772117274057,0.98317525,2042.5,2040.8,1.23558057]
[1772117274370,0.98317525,2043.0,2041.1,2.10784014]
[1772117274576,0.98317525,2042.8,2040.8,1.23558057]
[1772117274872,0.98317525,2042.0,2040.4,1.22823348]
[1772117275158,1.22440983,2041.8,2040.4,0.003]
[1772117275471,1.22440983,2041.8,2040.0,5.41303405]
[1772117275472,0.98317525,2041.5,2040.0,1.73655552]
[1772117275762,0.98317525,2041.5,2040.0,1.73657624]
[1772117275969,0.98317525,2041.5,2040.0,1.73658447]
[1772117276168,1.22440983,2041.8,2039.5,0.003]
[1772117276169,1.00834737,2041.1,2039.5,0.003]
[1772117276389,1.00834737,2040.5,2038.0,7.48813008]
[1772117276686,1.00834737,2040.5,2038.3,1.38926114]
[1772117276828,1.00834737,2040.1,2038.3,1.38929214]
[1772117277026,2.10784014,2039.3,2036.3,0.92672978]
[1772117277230,2.10784014,2039.3,2036.0,2.58139508]
[1772117277231,1.00834737,2038.5,2036.2,2.60766777]
[1772117277431,1.00834737,2039.7,2036.7,2.10784014]
[1772117277738,1.00834737,2039.3,2037.1,2.10784014]
[1772117277938,1.00834737,2039.3,2037.3,0.92672978]
[1772117278153,1.22561035,2039.8,2038.0,0.08192]
[1772117278463,3.04856133,2040.6,2038.0,0.08192]
[1772117278464,4.89951885,2041.1,2038.8,0.18685624]
[1772117278679,1.22482974,2041.1,2039.1,3.03456992]
[1772117278827,1.22482974,2041.1,2039.2,0.18685624]
[1772117279027,3.33266988,2041.1,2039.3,1.22591085]
[1772117279260,1.00834737,2041.8,2039.6,0.18685624]
[1772117279464,1.00834737,2042.4,2040.0,1.11358602]
[1772117279633,1.00834737,2042.4,2039.7,1.62429815]
[1772117279634,1.00834737,2042.1,2039.7,1.62429815]
[1772117279833,1.00834737,2041.8,2039.7,2.10784014]
[1772117280035,1.00834737,2041.6,2039.5,0.18685624]
[1772117280230,1.00834737,2041.6,2039.4,0.92672978]
[1772117280231,1.00534737,2041.6,2039.4,0.92672978]
[1772117280435,1.00834737,2041.1,2039.0,1.22609122]
[1772117280733,2.6509059,2041.8,2039.2,0.18685624]
[1772117280734,1.582,2041.0,2039.2,0.18685624]
[1772117281040,1.2250098,2040.8,2039.0,1.22609122]
[1772117281239,1.2250098,2040.8,2038.2,1.22657246]
[1772117281240,1.00834737,2040.3,2038.2,1.22657246]
[1772117281442,1.00834737,2039.9,2037.8,1.22681322]
[1772117281628,1.00834737,2039.5,2037.4,1.22705408]
[1772117281835,1.537,2039.8,2037.7,2.10784014]
[1772117282141,1.396,2040.6,2038.5,3.03456992]
[1772117282330,1.396,2040.6,2038.6,1.219]
[1772117282528,3.11618751,2040.5,2038.4,2.60766777]
[1772117282870,1.00834737,2040.5,2038.4,4.71550791]
[1772117283192,1.22524995,2040.4,2038.5,1.22639195]
[1772117283470,2.10784014,2039.9,2038.1,1.22663264]
[1772117283772,1.00834737,2039.8,2037.6,2.15366342]
[1772117283940,1.00834737,2039.6,2037.6,2.15366342]
[1772117284143,1.00834737,2039.6,2037.6,1.22693364]
[1772117284336,0.886,2039.9,2037.9,2.10784014]
[1772117284532,0.886,2039.9,2038.1,0.18685624]
[1772117284731,1.00834737,2040.9,2039.1,2.10784014]
[1772117284957,1.00834737,2040.9,2039.1,2.05784014]
[1772117285163,1.00834737,2040.7,2038.7,4.90460542]
[1772117285636,1.00834737,2040.7,2038.8,2.29469638]
[1772117286381,1.00834737,2040.7,2038.8,0.08192]
[1772117286668,1.00834737,2040.7,2038.7,0.18685624]
[1772117286868,3.11618751,2040.7,2038.6,4.90460542]
[1772117287052,3.11618751,2040.7,2038.8,1.22621149]
[1772117287053,2.23347723,2040.6,2038.8,1.22621149]
[1772117287257,1.22488975,2041.0,2039.0,2.10784014]
[1772117287458,1.00834737,2040.9,2038.8,1.22621149]
[1772117287762,1.00834737,2040.9,2038.9,0.18685624]
[1772117288463,1.00834737,2040.9,2038.6,1.226299]
[1772117288665,4.91872989,2041.0,2038.5,5.05600533]
[1772117288666,1.00834737,2040.5,2038.5,5.05600533]
[1772117288865,1.00834737,2040.5,2038.6,0.0011]
[1772117289166,1.00834737,2040.3,2038.6,0.0011]
[1772117289342,1.00834737,2040.1,2038.6,0.0011]
[1772117289546,1.586,2040.2,2038.6,0.0011]
[1772117289871,1.586,2040.2,2038.6,0.18795624]
[1772117290052,2.59434737,2040.2,2038.5,1.22638304]
[1772117290445,0.001,2040.5,2038.8,2.10784014]
[1772117290653,1.22619042,2040.5,2038.9,1.221]
[1772117291034,1.00834737,2040.4,2038.4,4.90666781]
[1772117291271,1.00834737,2040.4,2038.5,0.08192]
[1772117291482,1.00834737,2040.4,2038.5,2.18976014]
[1772117291885,1.00834737,2040.4,2038.4,4.90666781]
[1772117292057,1.00834737,2040.4,2038.5,0.18685624]
[1772117292453,1.00834737,2040.1,2038.4,0.0011]
[1772117293084,1.00834737,2039.9,2038.4,0.0011]
[1772117293270,2.59234737,2039.8,2038.4,0.0011]
[1772117293582,1.00834737,2039.5,2038.1,0.0011]